bitfinex-derivatives/quotes_SOLF0:USTF0_20251006
["timestamp","ask_amount","ask_price","bid_price","bid_amount"]
[1759767389443,3.8257,235.13,235.09,0.02744197]
[1759767391247,3.8261,235.11,235.09,0.02744197]
[1759767391450,105.2,235.1,235.09,0.02744197]
[1759767394350,105.2,235.1,235.09,0.02744197]
[1759767395846,105.2,235.11,235.09,0.02744197]
[1759767396644,105.2,235.11,235.1,7.84]
[1759767396844,309.7,235.16,235.1,7.84]
[1759767397556,309.7,235.16,235.09,3.59584305]
[1759767397757,309.7,235.16,235.1,7.84]
[1759767398152,309.7,235.16,235.12,3.8257]
[1759767398352,309.7,235.16,235.1,7.84]
[1759767398852,309.7,235.16,235.1,11.40840108]
[1759767399449,309.7,235.16,235.1,7.84]
[1759767399650,309.7,235.16,235.09,3.59584305]
[1759767401853,309.7,235.16,235.09,7.42204305]
[1759767402049,309.7,235.16,235.1,3.56840108]
[1759767402446,309.7,235.16,235.1,7.39450108]
[1759767402642,309.7,235.16,235.1,3.56840108]
[1759767402848,309.7,235.16,235.1,11.40840108]
[1759767403146,3.03977381,235.28,235.1,3.56840108]
[1759767403350,3.03977381,235.28,235.13,11.40840108]
[1759767403557,105.16,235.27,235.13,11.40840108]
[1759767404354,105.16,235.27,235.14,3.56840108]
[1759767404556,3.8241,235.23,235.16,3.8251]
[1759767404755,105.16,235.22,235.16,3.8251]
[1759767405645,105.16,235.22,235.17,3.8249]
[1759767405951,105.16,235.22,235.13,7.84]
[1759767405952,105.16,235.22,235.16,3.03977381]
[1759767406147,105.16,235.22,235.16,6.60817489]
[1759767406355,105.16,235.22,235.17,0.02769646]
[1759767406753,105.16,235.22,235.2,7.84]
[1759767406953,105.16,235.22,235.17,7.86769646]
[1759767407854,105.16,235.22,235.18,7.84]
[1759767408055,105.16,235.22,235.18,11.4047]
[1759767408457,105.16,235.22,235.19,7.58]
[1759767408649,105.16,235.22,235.19,11.4046]
[1759767408854,105.14,235.27,235.18,7.58]
[1759767409054,105.14,235.27,235.18,11.14840108]
[1759767409857,105.14,235.27,235.21,3.8243]
[1759767410853,105.14,235.27,235.18,11.14840108]
[1759767411058,105.14,235.27,235.22,11.4041]
[1759767411758,105.14,235.27,235.24,7.58]
[1759767412152,105.14,235.27,235.25,7.58]
[1759767412358,309.66,235.31,235.27,3.8233]
[1759767412659,105.12,235.32,235.25,7.58]
[1759767412954,105.12,235.32,235.29,11.403]
[1759767413254,105.12,235.32,235.3,7.58]
[1759767413462,105.12,235.37,235.3,7.58]
[1759767413654,105.12,235.37,235.31,3.8228]
[1759767414549,105.12,235.37,235.33,7.58]
[1759767414864,3.8208,235.44,235.32,3.84979294]
[1759767415064,105.1,235.43,235.33,7.58]
[1759767415557,105.1,235.43,235.34,3.8223]
[1759767416360,105.08,235.48,235.35,7.58]
[1759767416750,105.08,235.48,235.32,3.59569402]
[1759767416951,117.56912815,235.48,235.3,7.58]
[1759767417152,3.03977381,235.46,235.3,7.58]
[1759767417356,59.4272,235.47,235.3,7.58]
[1759767417562,3.821,235.42,235.38,0.02720877]
[1759767417763,105.08,235.41,235.38,0.02720877]
[1759767417963,105.08,235.43,235.38,0.02720877]
[1759767422467,105.08,235.43,235.39,7.58]
[1759767422861,105.08,235.43,235.38,0.02720877]
[1759767423568,105.08,235.43,235.38,11.42870877]
[1759767423770,105.08,235.43,235.39,7.58]
[1759767424170,105.08,235.43,235.4,3.8213]
[1759767424569,105.08,235.43,235.41,7.58]
[1759767424765,3.03977381,235.51,235.4,3.8213]
[1759767424966,63.24,235.53,235.42,7.58]
[1759767425471,63.24,235.53,235.44,3.8205]
[1759767425666,63.24,235.53,235.42,7.58]
[1759767426663,63.24,235.53,235.42,11.401]
[1759767427260,67.0592,235.53,235.43,3.8207]
[1759767427669,67.0592,235.53,235.42,7.58]
[1759767428167,67.0592,235.53,235.46,0.02798021]
[1759767430473,66.27977381,235.53,235.46,0.02798021]
[1759767430971,3.8196,235.51,235.46,0.02798021]
[1759767432280,0.73927729,235.57,235.46,0.02798021]
[1759767432474,108.01977381,235.56,235.46,0.02798021]
[1759767432867,3.8192,235.54,235.46,3.84818021]
[1759767433374,108.01977381,235.56,235.48,3.82]
[1759767433671,104.98,235.56,235.48,3.82]
[1759767434972,108.7989,235.56,235.48,3.82]
[1759767435168,108.01977381,235.56,235.46,3.84828021]
[1759767435374,108.01977381,235.56,235.46,0.02798021]
[1759767435575,3.8197,235.51,235.46,0.02798021]
[1759767435777,59.4084,235.54,235.46,0.02798021]
[1759767436074,3.03977381,235.52,235.46,0.02798021]
[1759767436273,3.82,235.49,235.46,0.02798021]
[1759767436473,105.02,235.48,235.46,0.02798021]
[1759767436875,108.05977381,235.48,235.37,3.8218]
[1759767437172,108.05977381,235.48,235.36,7.58]
[1759767437369,108.05977381,235.48,235.36,11.4019]
[1759767437769,167.48407381,235.48,235.36,7.58]
[1759767437976,3.03977381,235.44,235.31,7.58]
[1759767438975,3.03977381,235.44,235.27,368.8153]
[1759767438976,3.8218,235.37,235.29,3.8231]
[1759767439175,108.8618,235.37,235.29,3.8231]
[1759767439480,108.8618,235.37,235.27,7.88]
[1759767439481,3.8222,235.35,235.27,7.88]
[1759767439681,3.03977381,235.36,235.23,7.88]
[1759767440570,3.8223,235.34,235.23,11.7039]
[1759767441080,0.02781421,235.32,235.23,7.88]
[1759767441476,0.02781421,235.32,235.25,3.8237]
[1759767443171,105.16781421,235.32,235.25,3.8237]
[1759767443577,0.02781421,235.32,235.25,3.8237]
[1759767443778,105.16781421,235.32,235.25,3.8237]
[1759767447879,105.16781421,235.32,235.18,7.12602798]
[1759767447880,105.16781421,235.32,235.22,3.56840108]
[1759767448085,105.16781421,235.32,235.19,11.44840108]
[1759767448281,0.02781421,235.32,235.21,14.48817489]
[1759767448486,0.02781421,235.32,235.26,7.88]
[1759767449182,0.02781421,235.32,235.26,9.8215379]
[1759767449584,0.02781421,235.32,235.27,11.7034]
[1759767450489,0.02781421,235.32,235.28,7.88]
[1759767450688,0.02781421,235.32,235.27,3.8234]
[1759767451189,0.02781421,235.32,235.28,7.88]
[1759767451388,0.02781421,235.32,235.27,3.8234]
[1759767452482,0.02781421,235.32,235.28,7.88]
[1759767453684,0.02781421,235.32,235.27,3.8234]
[1759767453885,0.02781421,235.32,235.28,7.88]
[1759767454183,0.02781421,235.32,235.27,7.39180108]
[1759767454391,0.02781421,235.32,235.3,7.88]
[1759767454588,70.54,235.42,235.32,7.88]
[1759767454784,70.54,235.42,235.32,11.44840108]
[1759767454987,70.54,235.42,235.36,7.88]
[1759767455187,1.9415379,235.47,235.37,1.9415379]
[1759767455386,105.14,235.45,235.37,1.9415379]
[1759767457693,313.0407,235.44,235.37,1.9415379]
[1759767458596,313.0407,235.44,235.38,0.02677918]
[1759767458985,3.821,235.42,235.38,0.02677918]
[1759767459891,314.9822379,235.44,235.38,0.02677918]
[1759767460093,311.1615379,235.44,235.38,0.02677918]
[1759767460490,309.22,235.44,235.38,0.02677918]
[1759767460991,105.02,235.43,235.39,7.72]
[1759767461190,105.02,235.43,235.38,0.02677918]
[1759767461703,105.02,235.43,235.38,7.74677918]
[1759767462586,105.02,235.43,235.38,11.56827918]
[1759767462784,105.02,235.43,235.39,7.72]
[1759767463796,108.8409,235.43,235.38,0.02677918]
[1759767463991,1.9415379,235.42,235.38,0.02677918]
[1759767464486,3.8215,235.4,235.38,0.02677918]
[1759767464691,1.9415379,235.39,235.38,0.02677918]
[1759767465490,106.9815379,235.39,235.38,0.02677918]
[1759767468303,1.9415379,235.42,235.38,0.02677918]
[1759767468593,105.0,235.41,235.38,0.02677918]
[1759767468896,105.0,235.41,235.38,7.70677918]
[1759767469096,105.0,235.41,235.39,7.68]
[1759767469295,105.0,235.41,235.38,0.02677918]
[1759767469494,105.0,235.41,235.39,7.68]
[1759767469998,105.02,235.4,235.38,0.02677918]
[1759767470200,105.02,235.4,235.38,7.70677918]
[1759767470401,105.0,235.4,235.38,7.70677918]
[1759767470800,309.22,235.44,235.38,7.70677918]
[1759767471001,105.0,235.43,235.38,0.02677918]
[1759767471201,105.0,235.42,235.38,0.02677918]
[1759767471391,309.22,235.44,235.38,0.02677918]
[1759767471600,105.0,235.43,235.38,0.02677918]
[1759767471795,309.22,235.44,235.38,0.02677918]
[1759767471998,105.0,235.43,235.38,0.02677918]
[1759767472204,309.22,235.44,235.38,0.02677918]
[1759767472406,105.0,235.42,235.38,0.02677918]
[1759767474405,105.0,235.42,235.38,7.70677918]
[1759767475700,105.0,235.42,235.39,3.8215]
[1759767475902,105.0,235.42,235.38,7.70677918]
[1759767476103,105.0,235.42,235.38,0.02677918]
[1759767481106,108.821,235.42,235.38,0.02677918]
[1759767481313,1.9415379,235.41,235.38,0.02677918]
[1759767481912,3.8214,235.4,235.38,0.02677918]
[1759767482111,104.98,235.39,235.38,0.02677918]
[1759767485610,164.8472,235.39,235.29,4.75068532]
[1759767485812,1.9415379,235.32,235.27,12.43068532]
[1759767486009,104.98,235.31,235.27,12.43068532]
[1759767487216,104.98,235.31,235.28,3.8231]
[1759767487910,309.22,235.44,235.3,7.68]
[1759767488114,309.22,235.44,235.37,7.68]
[1759767488313,105.0,235.43,235.39,1.9415379]
[1759767488505,105.0,235.42,235.4,7.68]
[1759767488710,105.0,235.42,235.39,1.9415379]
[1759767488909,105.0,235.45,235.39,14.37222322]
[1759767489113,105.0,235.45,235.39,9.6215379]
[1759767489417,0.02990523,235.43,235.42,7.68]
[1759767491114,0.02990523,235.43,235.39,4.75068532]
[1759767491323,0.02990523,235.43,235.37,4.75068532]
[1759767491508,0.02990523,235.43,235.36,4.75068532]
[1759767491714,1.97144313,235.43,235.34,4.75068532]
[1759767491914,5.79244313,235.43,235.34,8.57288532]
[1759767493016,3.85090523,235.43,235.35,4.75068532]
[1759767495641,0.02990523,235.43,235.36,7.68]
[1759767495820,14.56990523,235.43,235.37,4.75068532]
[1759767496018,14.56990523,235.43,235.39,7.68]
[1759767496222,14.56990523,235.43,235.38,4.75068532]
[1759767496624,14.56990523,235.43,235.41,7.68]
[1759767496819,14.56990523,235.43,235.4,3.8213]
[1759767497123,14.56990523,235.43,235.42,7.68]
[1759767500220,14.56990523,235.43,235.41,7.29]
[1759767500524,14.56990523,235.43,235.41,6.42278208]
[1759767500824,14.56990523,235.43,235.4,8.57188532]
[1759767501622,14.56990523,235.43,235.4,4.75068532]
[1759767501825,14.56990523,235.43,235.37,4.75068532]
[1759767502021,14.56990523,235.43,235.35,4.75068532]
[1759767502223,74.00770523,235.43,235.33,4.75068532]
[1759767502427,74.00770523,235.43,235.32,4.75068532]
[1759767502726,73.9778,235.43,235.32,4.75068532]
[1759767503424,3.84918464,235.4,235.32,4.75068532]
[1759767503621,3.84918464,235.4,235.33,4.75068532]
[1759767505332,3.8216,235.39,235.33,4.75068532]
[1759767505528,0.02778464,235.4,235.32,4.75068532]
[1759767505924,0.02778464,235.4,235.33,4.75068532]
[1759767506120,59.4493,235.38,235.31,4.75068532]
[1759767506336,59.4493,235.38,235.28,4.75068532]
[1759767506920,3.8226,235.32,235.27,4.75068532]
[1759767507120,104.98,235.31,235.26,4.75068532]
[1759767507625,3.823,235.3,235.23,4.75068532]
[1759767507934,3.823,235.3,235.24,4.75068532]
[1759767508232,105.00988131,235.31,235.23,4.75068532]
[1759767508529,104.98,235.3,235.23,12.04068532]
[1759767508730,0.02988131,235.31,235.24,4.75068532]
[1759767508923,104.98,235.3,235.25,4.75068532]
[1759767509119,104.98,235.3,235.26,3.8236]
[1759767509320,104.98,235.3,235.27,7.29]
[1759767509522,104.98,235.3,235.26,4.75068532]
[1759767509926,64.15849647,235.41,235.27,7.29]
[1759767510132,104.98,235.34,235.27,7.29]
[1759767511028,108.8023,235.34,235.26,4.75068532]
[1759767511330,104.98,235.34,235.24,4.75068532]
[1759767511527,104.98,235.34,235.23,4.75068532]
[1759767512226,59.4615,235.33,235.22,12.04068532]
[1759767512526,59.4615,235.33,235.22,4.75068532]
[1759767512731,0.02676363,235.31,235.21,4.75068532]
[1759767512931,0.02676363,235.31,235.2,4.75068532]
[1759767513127,0.02676363,235.31,235.17,14.41602798]
[1759767513128,0.02676363,235.31,235.19,4.75068532]
[1759767513427,3.8236,235.26,235.19,4.75068532]
[1759767513625,104.98,235.25,235.19,4.75068532]
[1759767514724,0.02970844,235.24,235.19,4.75068532]
[1759767514927,0.02970844,235.24,235.19,12.04068532]
[1759767515434,0.02970844,235.24,235.2,7.29]
[1759767517737,0.02970844,235.24,235.18,4.75068532]
[1759767518129,0.02970844,235.24,235.17,4.75068532]
[1759767518431,0.02970844,235.24,235.2,4.75068532]
[1759767518735,0.02970844,235.24,235.21,4.75068532]
[1759767519332,0.02970844,235.24,235.23,11.5341]
[1759767519731,0.02970844,235.24,235.23,7.71]
[1759767519927,0.02970844,235.24,235.19,4.75068532]
[1759767520127,0.02970844,235.24,235.18,4.75068532]
[1759767520334,0.02970844,235.24,235.17,4.75068532]
[1759767520629,3.85360844,235.24,235.16,4.75068532]
[1759767521235,3.85360844,235.24,235.15,12.46068532]
[1759767521634,3.85360844,235.24,235.15,7.71]
[1759767522035,3.8243,235.22,235.15,7.71]
[1759767522241,3.8243,235.22,235.11,15.20751815]
[1759767522242,0.02970844,235.24,235.1,7.71]
[1759767522935,59.4793,235.26,235.1,7.71]
[1759767523235,59.4793,235.26,235.12,3.8259]
[1759767523439,21.99324466,235.28,235.12,3.8259]
[1759767523440,59.4766,235.27,235.12,3.8259]
[1759767523741,0.02772819,235.19,235.13,3.8256]
[1759767523946,105.02,235.18,235.13,11.5356]
[1759767524133,0.02772819,235.19,235.13,11.5356]
[1759767524335,29.26,235.18,235.13,11.5356]
[1759767524935,0.02772819,235.19,235.13,7.71]
[1759767525532,0.02772819,235.19,235.16,7.71]
[1759767525840,0.02772819,235.19,235.12,7.71]
[1759767527243,0.02772819,235.19,235.16,3.8251]
[1759767527540,0.02772819,235.19,235.17,7.71]
[1759767528144,0.02772819,235.19,235.18,11.7549]
[1759767528538,0.02772819,235.19,235.18,7.93]
[1759767531854,0.02772819,235.19,235.13,11.7556]
[1759767532753,0.02772819,235.19,235.11,7.93]
[1759767533546,105.04,235.21,235.15,11.7553]
[1759767533754,3.8241,235.24,235.15,11.7553]
[1759767533953,55.52,235.23,235.15,11.7553]
[1759767534154,0.02887218,235.17,235.16,7.93]
[1759767534854,64.96,235.21,235.16,7.93]
[1759767535455,0.02795865,235.19,235.16,7.93]
[1759767535653,0.02795865,235.19,235.11,3.826]
[1759767536156,3.85285865,235.19,235.12,3.8257]
[1759767537051,105.04,235.18,235.12,3.8257]
[1759767540048,108.865,235.18,235.1,7.93]
[1759767541458,105.04,235.18,235.1,7.93]
[1759767542060,105.04,235.18,235.11,3.8259]
[1759767542262,105.04,235.17,235.11,3.8259]
[1759767542761,3.85285865,235.19,235.11,3.8259]
[1759767542958,0.02795865,235.19,235.11,7.93]
[1759767543462,0.02795865,235.19,235.18,7.93]
[1759767544450,3.0369264,235.33,235.18,8.35]
[1759767544657,3.0369264,235.33,235.16,59.503]
[1759767544658,105.04,235.3,235.21,3.0369264]
[1759767544961,105.04,235.3,235.22,7.93]
[1759767545862,105.04,235.3,235.27,7.93]
[1759767546656,3.8223,235.34,235.27,7.93]
[1759767546854,3.8223,235.34,235.27,3.8233]
[1759767547057,105.02,235.3,235.27,3.8233]
[1759767547264,105.02,235.3,235.28,7.93]
[1759767547959,3.0369264,235.41,235.3,7.93]
[1759767548154,105.02,235.34,235.3,7.93]
[1759767548355,105.02,235.34,235.31,7.93]
[1759767550261,105.02,235.34,235.3,0.02785039]
[1759767551560,108.8423,235.34,235.3,0.02785039]
[1759767551864,105.02,235.34,235.3,0.02785039]
[1759767552169,105.0,235.33,235.3,7.95785039]
[1759767552866,105.0,235.33,235.3,0.02785039]
[1759767553071,105.0,235.33,235.3,7.95785039]
[1759767554061,3.8218,235.37,235.3,7.95785039]
[1759767554263,57.34,235.36,235.3,7.95785039]
[1759767554458,57.34,235.36,235.3,0.02785039]
[1759767556161,3.8222,235.35,235.3,0.02785039]
[1759767556864,57.34,235.36,235.3,0.02785039]
[1759767558063,61.162,235.36,235.3,0.02785039]
[1759767560473,57.34,235.36,235.3,0.02785039]
[1759767561267,3.8216,235.39,235.3,0.02785039]
[1759767561474,104.98,235.38,235.3,0.02785039]
[1759767562571,3.8221,235.36,235.3,0.02785039]
[1759767563071,108.0169264,235.38,235.3,0.02785039]
[1759767563271,120.8323271,235.38,235.3,0.02785039]
[1759767563472,3.822,235.36,235.3,0.02785039]
[1759767567676,3.8223,235.35,235.3,0.02785039]
[1759767569874,3.8224,235.34,235.3,0.02785039]
[1759767573085,5.76419736,235.34,235.3,0.02785039]
[1759767580092,5.76459736,235.31,235.3,0.02785039]
[1759767580294,110.70459736,235.31,235.3,0.02785039]
[1759767583993,108.7628,235.31,235.3,0.02785039]
[1759767585885,309.42,235.36,235.3,0.02785039]
[1759767586390,104.94,235.35,235.3,0.02785039]
[1759767586587,104.94,235.35,235.31,7.95]
[1759767586787,104.94,235.35,235.3,0.02785039]
[1759767587883,106.88179736,235.35,235.3,0.02785039]
[1759767588489,104.94,235.35,235.3,0.02785039]
[1759767589394,315.18389736,235.36,235.3,3.58045143]
[1759767589395,104.94,235.34,235.3,3.58045143]
[1759767591597,108.7624,235.34,235.3,0.02785039]
[1759767593098,108.7624,235.34,235.3,3.58045143]
[1759767594301,104.92,235.33,235.3,11.06045143]
[1759767594693,104.92,235.33,235.3,3.58045143]
[1759767597800,108.7426,235.33,235.3,3.58045143]
[1759767598701,3.8227,235.32,235.3,3.58045143]
[1759767598902,3.8227,235.32,235.3,0.02785039]
[1759767599205,5.76449736,235.32,235.3,0.02785039]
[1759767600997,59.4771,235.27,235.2,4.75068532]
[1759767601200,104.9,235.26,235.18,4.75068532]
[1759767601400,1.94179736,235.24,235.16,4.75068532]
[1759767601604,104.9,235.26,235.15,12.23068532]
[1759767601801,5.76579736,235.24,235.15,12.23068532]
[1759767602002,3.824,235.24,235.15,12.23068532]
[1759767602198,106.84179736,235.26,235.15,12.23068532]
[1759767602401,0.02761748,235.23,235.17,1.94179736]
[1759767602704,104.9,235.22,235.17,1.94179736]
[1759767602904,0.02761748,235.23,235.18,7.48]
[1759767603105,0.02761748,235.23,235.2,1.94179736]
[1759767603307,72.96,235.22,235.21,7.48]
[1759767604409,0.02761748,235.23,235.21,7.9]
[1759767604611,72.2657007,235.38,235.22,7.9]
[1759767604612,1.94179736,235.37,235.22,7.9]
[1759767604906,45.12,235.36,235.31,1.94179736]
[1759767605607,45.12,235.36,235.32,7.48]
[1759767606605,45.12,235.36,235.31,1.94179736]
[1759767606804,45.12,235.36,235.32,7.48]
[1759767607208,104.9,235.35,235.31,1.94179736]
[1759767607610,104.9,235.35,235.32,7.48]
[1759767614706,104.9,235.35,235.31,0.0268092]
[1759767614908,164.3572,235.35,235.31,0.0268092]
[1759767615207,1.94179736,235.32,235.31,0.0268092]
[1759767615604,1.94179736,235.34,235.31,0.0268092]
[1759767616615,59.4613,235.33,235.21,4.75068532]
[1759767616816,1.94179736,235.31,235.21,6.69248268]
[1759767617113,3.8236,235.26,235.19,6.69248268]
[1759767617410,104.88,235.25,235.19,6.69248268]
[1759767617615,104.88,235.25,235.19,4.75068532]
[1759767617815,3.824,235.24,235.19,4.75068532]
[1759767618215,3.85242898,235.24,235.19,4.75068532]
[1759767618511,104.88,235.23,235.21,7.3]
[1759767618710,104.88,235.23,235.2,1.94179736]
[1759767618910,104.88,235.23,235.21,7.3]
[1759767619609,104.88,235.23,235.2,1.94179736]
[1759767620409,104.88,235.23,235.18,1.94179736]
[1759767620613,104.88,235.23,235.19,7.3]
[1759767621316,104.88,235.23,235.17,4.75068532]
[1759767621507,104.88,235.23,235.15,4.75068532]
[1759767621705,0.02842898,235.24,235.17,1.94179736]
[1759767621915,104.88,235.23,235.21,1.94179736]
[1759767622409,104.88,235.23,235.21,9.24179736]
[1759767622617,104.88,235.23,235.21,1.94179736]
[1759767622809,104.88,235.23,235.18,1.94179736]
[1759767624514,104.88,235.23,235.18,9.24179736]
[1759767625823,104.88,235.23,235.18,1.94179736]
[1759767626319,104.88,235.23,235.19,7.3]
[1759767626517,104.88,235.23,235.18,1.94179736]
[1759767626913,104.88,235.23,235.18,6.69248268]
[1759767627115,104.88,235.23,235.19,7.3]
[1759767627424,104.88,235.23,235.18,1.94179736]
[1759767627618,104.88,235.23,235.19,7.3]
[1759767628116,104.88,235.23,235.18,1.94179736]
[1759767628521,104.88,235.23,235.19,7.3]
[1759767628717,104.88,235.23,235.2,7.3]
[1759767629022,104.90842898,235.24,235.19,7.3]
[1759767629423,104.90842898,235.24,235.18,1.94179736]
[1759767629624,104.90842898,235.24,235.18,6.69248268]
[1759767630018,0.02842898,235.24,235.23,7.3]
[1759767633822,0.02842898,235.24,235.23,7.72]
[1759767636334,61.64,235.31,235.25,3.8237]
[1759767636521,61.64,235.31,235.24,4.75711656]
[1759767636726,61.64,235.31,235.25,3.8236]
[1759767638527,61.64,235.31,235.26,3.8235]
[1759767639634,4.5619431,235.35,235.26,3.8235]
[1759767639834,104.86,235.34,235.26,3.8235]
[1759767641737,104.86,235.34,235.28,0.02763747]
[1759767643638,3.8226,235.33,235.28,0.02763747]
[1759767645036,3.03405296,235.32,235.28,0.02763747]
[1759767645246,3.03405296,235.32,235.19,4.75711656]
[1759767645436,3.03405296,235.28,235.17,4.75711656]
[1759767645638,104.84,235.27,235.17,4.75711656]
[1759767646238,104.84,235.27,235.16,4.75711656]
[1759767646640,3.8239,235.25,235.16,8.58231656]
[1759767646837,0.02677825,235.23,235.14,4.75711656]
[1759767647140,0.02677825,235.23,235.11,4.75711656]
[1759767647744,3.8246,235.2,235.11,4.75711656]
[1759767647936,104.86,235.19,235.11,12.01711656]
[1759767648443,104.86,235.19,235.11,11.086]
[1759767649446,104.86,235.19,235.11,7.26]
[1759767649747,0.02768271,235.17,235.11,12.01711656]
[1759767650544,0.02768271,235.17,235.13,11.0856]
[1759767651145,0.02768271,235.17,235.13,7.26]
[1759767651439,0.02768271,235.17,235.11,8.58311656]
[1759767651641,0.02768271,235.17,235.11,7.26]
[1759767652040,0.02768271,235.17,235.12,12.01711656]
[1759767652233,0.02768271,235.17,235.12,7.79116952]
[1759767652439,0.02768271,235.17,235.13,7.26]
[1759767652638,0.02768271,235.17,235.12,7.79116952]
[1759767652846,0.02768271,235.17,235.13,7.26]
[1759767653048,0.02768271,235.17,235.12,7.79116952]
[1759767653640,0.02768271,235.17,235.14,3.8255]
[1759767653842,0.02768271,235.17,235.15,7.26]
[1759767654849,0.02768271,235.17,235.14,3.8255]
[1759767655146,0.02768271,235.17,235.15,7.26]
[1759767655343,0.02768271,235.17,235.12,4.75711656]
[1759767655344,0.02768271,235.17,235.12,8.58301656]
[1759767655544,0.02768271,235.17,235.13,7.26]
[1759767655745,0.02768271,235.17,235.12,8.58301656]
[1759767656146,0.02768271,235.17,235.15,7.26]
[1759767657345,0.02768271,235.17,235.14,3.8255]
[1759767657949,0.02768271,235.17,235.12,15.84301656]
[1759767658150,0.02768271,235.17,235.12,11.0859]
[1759767658753,0.02768271,235.17,235.13,7.26]
[1759767661051,0.02768271,235.17,235.13,3.56700359]
[1759767661557,3.06173567,235.17,235.11,3.56700359]
[1759767661848,0.02768271,235.17,235.12,7.26]
[1759767662056,30.52,235.16,235.13,7.26]
[1759767662248,0.02768271,235.17,235.12,3.56700359]
[1759767662453,0.02768271,235.17,235.13,3.56700359]
[1759767662647,0.02768271,235.17,235.14,3.56700359]
[1759767662852,0.02768271,235.17,235.15,7.26]
[1759767663053,0.02768271,235.17,235.14,3.56700359]
[1759767663355,0.02768271,235.17,235.13,3.56700359]
[1759767663556,0.02768271,235.17,235.15,3.8252]
[1759767663858,0.02768271,235.17,235.16,7.26]
[1759767664652,0.02768271,235.17,235.13,10.82700359]
[1759767664854,0.02768271,235.17,235.14,7.26]
[1759767665153,0.02768271,235.17,235.13,3.56700359]
[1759767665357,0.02768271,235.17,235.14,7.26]
[1759767667960,0.02768271,235.17,235.13,10.82700359]
[1759767668259,0.02768271,235.17,235.13,3.56700359]
[1759767668457,0.02768271,235.17,235.14,7.26]
[1759767668661,0.02768271,235.17,235.16,3.56700359]
[1759767668860,0.02768271,235.17,235.16,10.82700359]
[1759767670153,0.02768271,235.17,235.16,7.26]
[1759767670858,0.02768271,235.17,235.15,3.56700359]
[1759767671160,0.02768271,235.17,235.15,7.26]
[1759767671856,0.02768271,235.17,235.14,3.56700359]
[1759767672060,0.02768271,235.17,235.15,7.26]
[1759767672257,0.02768271,235.17,235.14,3.56700359]
[1759767672460,0.02768271,235.17,235.15,7.26]
[1759767672654,0.02768271,235.17,235.14,7.39240359]
[1759767673151,0.02768271,235.17,235.15,7.26]
[1759767673353,0.02768271,235.17,235.14,7.39240359]
[1759767673550,0.02768271,235.17,235.16,7.26]
[1759767675052,0.02768271,235.17,235.14,7.26]
[1759767675253,0.02768271,235.17,235.12,3.56700359]
[1759767675461,0.02768271,235.17,235.11,3.56700359]
[1759767675960,0.02768271,235.17,235.11,3.56334315]
[1759767676260,0.02768271,235.17,235.13,7.26]
[1759767677055,0.02768271,235.17,235.1,3.56334315]
[1759767678363,0.02768271,235.17,235.09,3.56334315]
[1759767678560,3.8254,235.15,235.09,3.56334315]
[1759767678762,104.86,235.14,235.09,10.82334315]
[1759767679060,104.86,235.14,235.08,3.56334315]
[1759767679261,3.8259,235.13,235.08,10.82334315]
[1759767680460,3.85812367,235.13,235.08,7.26]
[1759767681762,3.03405296,235.12,235.04,3.56334315]
[1759767682063,3.03405296,235.12,235.02,7.26]
[1759767683156,3.06627663,235.13,235.02,7.26]
[1759767683555,3.8265,235.09,235.02,7.26]
[1759767683760,104.86,235.08,235.02,7.26]
[1759767684967,0.02793599,235.07,235.01,7.26]
[1759767686765,3.85473599,235.07,235.01,7.26]
[1759767688364,0.02793599,235.07,235.01,7.26]
[1759767689473,3.85463599,235.07,235.01,7.26]
[1759767691771,0.02793599,235.07,235.01,7.26]
[1759767692569,0.02793599,235.07,235.04,7.26]
[1759767692768,0.02793599,235.07,235.06,7.26]